fUST/lending_fUST_20251212
["ID","MTS","AMOUNT","RATE_DAILY","PERIOD"]
[398354286,1765550679637,-500.0,0.00042191,120]
[398354287,1765550679678,-5438.09,0.00042191,120]
[398354288,1765550679727,-643.6,0.00042191,120]
[398354289,1765550679775,-792.76,0.00042191,120]
[398354290,1765550679816,-500.0,0.00042191,120]
[398354291,1765550679858,-5550.06,0.00042191,120]
[398354292,1765550680077,-876.53,0.00042191,120]
[398354293,1765550680124,-3422.1,0.00042191,120]
[398354294,1765550680169,-742.28,0.00042191,120]
[398354295,1765550680215,-1603.27,0.00042191,120]
[398354296,1765550680259,-500.0,0.00042191,120]
[398354297,1765550680310,-528.71,0.00042191,120]
[398354298,1765550680352,-500.0,0.00042191,120]
[398354299,1765550680393,-893.45,0.00042191,120]
[398354300,1765550680438,-500.0,0.00042191,120]
[398354301,1765550680481,-863.82,0.00042191,120]
[398354302,1765550680529,-2007.36,0.00042191,120]
[398354303,1765550680575,-8598.22,0.00042191,120]
[398354304,1765550680613,-1629.58,0.00042191,120]
[398354305,1765550680652,-577.55,0.00042191,120]
[398354306,1765550680689,-475.40764716,0.00042191,60]
[398354307,1765550680726,-500.0,0.00042191,120]
[398354308,1765550680761,-6596.14,0.00042191,120]
[398354309,1765550680796,-500.0,0.00042191,120]
[398354310,1765550680831,-612.89,0.00042191,120]
[398354311,1765550680866,-529.71,0.00042191,120]
[398354312,1765550680901,-500.0,0.00042191,120]
[398354313,1765550680938,-1189.73,0.00042191,120]
[398354314,1765550680979,-1321.92,0.00042191,21]
[398354315,1765550681018,-555.33,0.00042191,120]
[398354316,1765550681056,-500.0,0.00042191,120]
[398354317,1765550681094,-500.0,0.00042191,120]
[398354318,1765550681131,-762.11,0.00042191,120]
[398354319,1765550681167,-2165.66,0.00042191,120]
[398354320,1765550681204,-500.0,0.00042191,120]
[398354321,1765550681244,-500.0,0.00042191,120]
[398354322,1765550681283,-500.0,0.00042191,120]
[398354323,1765550681325,-926.08,0.00042191,120]
[398354324,1765550681373,-927.01,0.00042191,120]
[398354325,1765550681415,-1481.02,0.00042191,120]
[398354326,1765550681458,-9311.53,0.00042191,120]
[398354327,1765550681499,-500.0,0.00042191,120]
[398354328,1765550681541,-638.95,0.00042191,120]
[398354329,1765550681581,-500.0,0.00042191,120]
[398354330,1765550681619,-666.47,0.00042191,120]
[398354331,1765550681658,-544.01,0.00042191,120]
[398354332,1765550681696,-713.64,0.00042191,120]
[398354333,1765550681736,-620.83,0.00042191,120]
[398354334,1765550681775,-9421.58,0.00042191,120]
[398354335,1765550681813,-730.68,0.00042191,120]
[398354336,1765550681852,-232.23248645,0.00042191,120]
[398354337,1765550681891,-580.18,0.00042191,120]
[398354338,1765550681929,-3515.94,0.00042191,120]
[398354339,1765550681969,-1297.0,0.00042191,30]
[398354340,1765550682008,-633.66,0.00042191,120]
[398354341,1765550682044,-922.4,0.00042191,30]
[398354342,1765550682087,-500.0,0.00042191,120]
[398354343,1765550682129,-5514.1,0.00042191,120]
[398354344,1765550682169,-959.85,0.00042191,40]
[398354345,1765550682207,-500.0,0.00042191,120]
[398354346,1765550682244,-4450.87,0.00042191,120]
[398354347,1765550682280,-1066.27,0.00042191,120]
[398354348,1765550682316,-578.39,0.00042191,120]
[398354349,1765550682353,-4678.34,0.00042191,120]
[398354350,1765550682392,-6211.14,0.00042191,120]
[398354351,1765550682431,-631.3,0.00042191,120]
[398354352,1765550682468,-500.0,0.00042191,120]
[398354353,1765550682502,-2126.42,0.00042191,120]
[398354354,1765550682540,-969.25,0.00042191,120]
[398354355,1765550682581,-1905.34,0.00042191,120]
[398354356,1765550682620,-730.44,0.00042191,120]
[398354357,1765550682656,-500.0,0.00042191,120]
[398354358,1765550682692,-2439.18,0.00042191,120]
[398354359,1765550682731,-1146.25,0.00042191,120]
[398354360,1765550682771,-501.00354508,0.00042191,120]
[398354361,1765550682812,-5316.03,0.00042191,120]
[398354362,1765550682848,-2849.86,0.00042191,120]
[398354363,1765550682883,-11745.46,0.00042191,120]
[398354364,1765550682919,-1652.31,0.00042191,120]
[398354365,1765550682954,-500.0,0.00042191,120]
[398354366,1765550682989,-500.0,0.00042191,120]
[398354367,1765550683026,-980.55,0.00042191,120]
[398354368,1765550683060,-500.81163396,0.00042191,120]
[398354369,1765550683095,-500.0,0.00042191,120]
[398354370,1765550683132,-1404.64,0.00042191,120]
[398354371,1765550683171,-171.729412,0.00042191,120]
[398354372,1765550683207,-500.0,0.00042191,120]
[398354373,1765550683245,-1817.08,0.00042191,120]
[398354374,1765550683280,-500.0,0.00042191,120]
[398354375,1765550683315,-552.9,0.00042191,120]
[398354376,1765550683351,-500.0,0.00042191,120]
[398354377,1765550683389,-1877.07,0.00042191,120]
[398354378,1765550683430,-500.0,0.00042191,120]
[398354379,1765550683471,-572.08,0.00042191,120]
[398354380,1765550683510,-1399.66,0.00042191,120]
[398354381,1765550683547,-500.0,0.00042191,120]
[398354382,1765550683586,-647.43,0.00042191,120]
[398354383,1765550683625,-500.0,0.00042191,120]
[398354384,1765550683664,-500.0,0.00042191,120]
[398354385,1765550683701,-500.0,0.00042191,30]
[398354386,1765550683739,-1192.86,0.00042191,120]
[398354387,1765550683930,-500.0,0.00042191,120]
[398354388,1765550683973,-11370.39,0.00042191,120]
[398354389,1765550684015,-1106.66,0.00042191,120]
[398354390,1765550684055,-500.0,0.00042191,120]
[398354391,1765550684096,-2998.58,0.00042191,120]
[398354392,1765550684136,-949.79,0.00042191,120]
[398354393,1765550684177,-582.61,0.00042191,120]
[398354394,1765550684225,-13925.74,0.00042191,120]
[398354395,1765550684267,-5218.25,0.00042191,120]
[398354396,1765550684308,-500.0,0.00042191,120]
[398354397,1765550684350,-1759.22,0.00042191,120]
[398354398,1765550684391,-2423.2,0.00042191,120]
[398354399,1765550684440,-500.0,0.00042191,120]
[398354400,1765550684482,-685.39,0.00042191,120]
[398354401,1765550684527,-500.0,0.00042191,120]
[398354402,1765550684568,-638.48,0.00042191,120]
[398354403,1765550684608,-500.0,0.00042191,120]
[398354404,1765550684646,-554.1,0.00042191,120]
[398354405,1765550684683,-295.30641892,0.000424,120]
[398354406,1765550684718,-1668.536328,0.00042465,120]
[398354407,1765550684753,-500.0,0.00042465,120]
[398354408,1765550684787,-542.82,0.00042465,120]
[398354409,1765550684821,-500.0,0.00042465,120]
[398354410,1765550684856,-500.0,0.00042465,120]
[398354411,1765550684891,-1542.23,0.00042465,120]
[398354412,1765550684924,-656.58,0.00042465,120]
[398354413,1765550684958,-500.0,0.00042465,120]
[398354414,1765550684992,-1149.44,0.00042465,120]
[398354415,1765550685029,-414.75250274,0.00042465,120]
[398354417,1765550843545,5000.0,0.00019,120]
[398354418,1765550866306,5000.0,0.00019,120]
[398354464,1765551032517,-150.0,9.776e-05,2]
[398354466,1765551032528,-150.0,9.875e-05,2]
[398354468,1765551032540,-154.77,0.0001,2]
[398354470,1765551032551,-154.77,0.000101,2]
[398354472,1765551032562,-154.77,0.000103,2]
[398354475,1765551032575,-154.77,0.000104,2]
[398354477,1765551032587,-154.77,0.000106,2]
[398354479,1765551032599,-154.77,0.000107,2]
[398354481,1765551032610,-154.77,0.000109,2]
[398354483,1765551032620,-154.77,0.00011,2]
[398354485,1765551032630,-154.77,0.000111,2]
[398354487,1765551032642,-154.77,0.000113,2]
[398354489,1765551032652,-300.0,0.00011372,2]
[398354491,1765551032662,-500.0,0.00011373,2]
[398354493,1765551032674,-500.0,0.00011373,2]
[398354495,1765551032686,-500.0,0.00011373,2]
[398354497,1765551032701,-500.0,0.00011373,2]
[398354499,1765551032713,-629.38621149,0.00011373,2]
[398354502,1765551032724,-500.0,0.00011373,2]
[398354504,1765551032735,-500.0,0.00011373,2]
[398354506,1765551032745,-500.0,0.00011373,2]
[398354508,1765551032755,-274.75794135,0.00011373,2]
[398354510,1765551032765,-388639.38656221,0.00011374,2]
[398354557,1765551038363,-3375.35056344,0.00011374,2]
[398354558,1765551038375,-51236.37084659,0.00011374,2]
[398354559,1765551038388,-911.94749805,0.00011374,2]
[398354560,1765551038416,-3179.92165807,0.00011374,2]
[398354570,1765551040596,-462.840333,0.00011374,2]
[398354588,1765551064912,-4215.00000006,0.00011374,2]
[398354589,1765551064924,-3406.06493121,0.00011374,2]
[398354590,1765551064935,-404.63637287,0.00011374,2]
[398354591,1765551064947,-7883.45929748,0.00011374,2]
[398354592,1765551064958,-8126.41739416,0.00011374,2]
[398354593,1765551064970,-237524.39578294,0.00011374,2]
[398354594,1765551064979,-154.77,0.000114,2]
[398354595,1765551064988,-171.214,0.00011473,2]
[398354596,1765551064998,-154.77,0.000116,2]
[398354597,1765551065007,-500.0,0.00011643,2]
[398354598,1765551065016,-500.0,0.00011643,3]
[398354599,1765551065025,-500.0,0.00011643,4]
[398354600,1765551065035,-500.0,0.00011643,5]
[398354601,1765551065044,-500.0,0.00011643,6]
[398354602,1765551065054,-500.0,0.00011643,7]
[398354603,1765551065063,-500.0,0.00011643,8]
[398354604,1765551065077,-500.0,0.00011643,9]
[398354605,1765551065086,-500.0,0.00011643,10]
[398354606,1765551065096,-500.0,0.00011643,11]
[398354607,1765551065105,-620.35315399,0.00011643,12]
[398354608,1765551065115,-200.32273422,0.00011663,2]
[398354609,1765551065124,-154.77,0.000117,2]
[398354610,1765551065133,-300.0,0.00011702,2]
[398354611,1765551065142,-300.0,0.00011702,2]
[398354612,1765551065152,-300.0,0.00011702,2]
[398354613,1765551065161,-300.0,0.00011702,2]
[398354614,1765551065172,-300.0,0.00011702,2]
[398354615,1765551065182,-300.0,0.00011702,2]
[398354616,1765551065192,-300.0,0.00011702,2]
[398354617,1765551065202,-300.0,0.00011702,2]
[398354618,1765551065211,-300.0,0.00011702,2]
[398354619,1765551065221,-300.0,0.00011702,2]
[398354620,1765551065231,-300.0,0.00011702,2]
[398354621,1765551065240,-300.0,0.00011702,2]
[398354622,1765551065249,-300.0,0.00011702,2]
[398354623,1765551065258,-300.0,0.00011702,2]
[398354624,1765551065267,-300.0,0.00011702,2]
[398354625,1765551065276,-600.0,0.00011702,2]
[398354626,1765551065285,-177.0,0.00011875,2]
[398354627,1765551065294,-154.77,0.000119,2]
[398354628,1765551065303,-154.77,0.00012,2]
[398354629,1765551065312,-154.77,0.000121,2]
[398354630,1765551065322,-700.0,0.00012209,2]
[398354631,1765551065331,-700.0,0.00012211,2]
[398354632,1765551065340,-700.0,0.00012216,2]
[398354633,1765551065349,-700.0,0.00012225,2]
[398354634,1765551065359,-154.77,0.000123,2]
[398354635,1765551065368,-700.0,0.00012315,2]
[398354636,1765551065377,-700.0,0.00012359,2]
[398354637,1765551065386,-700.0,0.00012385,2]
[398354638,1765551065395,-154.77,0.000124,2]
[398354639,1765551065404,-700.0,0.00012474,2]
[398354640,1765551065413,-725.4612,0.00012474,2]
[398354641,1765551065422,-241.8204,0.00012474,2]
[398354642,1765551065430,-300.0,0.00012492,2]
[398354643,1765551065439,-700.0,0.00012548,2]
[398354644,1765551065449,-700.0,0.00012549,2]
[398354645,1765551065459,-1360.0,0.0001255,2]
[398354646,1765551065468,-631.0,0.0001255,2]
[398354647,1765551065477,-2156.0,0.0001255,2]
[398354648,1765551065486,-700.0,0.00012582,2]
[398354649,1765551065495,-150.0,0.000126,2]
[398354650,1765551065504,-200.04063998,0.000126,2]
[398354651,1765551065513,-154.77,0.000126,2]
[398354652,1765551065522,-154.77,0.000127,2]
[398354653,1765551065531,-700.0,0.00012712,2]
[398354654,1765551065540,-241.8204,0.00012723,2]
[398354655,1765551065548,-209.6791812,0.00012732,2]
[398354656,1765551065557,-150.0,0.00012737,2]
[398354657,1765551065566,-720.0,0.00012873,2]
[398354658,1765551065575,-500.0,0.00012873,2]
[398354659,1765551065584,-158.62231059,0.00012873,2]
[398354660,1765551065593,-200.0,0.00012874,2]
[398354661,1765551065602,-295.30641892,0.00012898,2]
[398354662,1765551065611,-18481.31874318,0.000129,2]
[398354663,1765551065619,-154.77,0.000129,2]
[398354664,1765551065628,-154.77,0.00013,2]
[398354665,1765551065637,-500.0,0.0001301,2]
[398354666,1765551065646,-700.0,0.00013067,2]
[398354667,1765551065655,-154.77,0.000131,2]
[398354668,1765551065663,-700.0,0.00013105,2]
[398354669,1765551065672,-700.0,0.00013115,2]
[398354670,1765551065682,-500.0,0.00013147,2]
[398354671,1765551065691,-500.0,0.00013273,2]
[398354672,1765551065700,-263.47444706,0.00013273,2]
[398354673,1765551065709,-500.0,0.00013273,2]
[398354674,1765551065718,-500.0,0.00013273,2]
[398354675,1765551065727,-500.0,0.00013273,2]
[398354676,1765551065738,-500.0,0.00013273,2]
[398354677,1765551065749,-500.0,0.00013273,2]
[398354678,1765551065759,-500.0,0.00013273,2]
[398354679,1765551065768,-500.0,0.00013273,2]
[398354680,1765551065779,-500.0,0.00013273,2]
[398354681,1765551065789,-500.0,0.00013273,2]
[398354682,1765551065798,-500.0,0.00013273,2]
[398354683,1765551065808,-500.0,0.00013273,2]
[398354684,1765551065819,-193.28406519,0.00013273,2]
[398354685,1765551065829,-500.0,0.00013273,2]
[398354686,1765551065839,-500.0,0.00013273,2]
[398354687,1765551065848,-500.0,0.00013273,2]
[398354688,1765551065861,-500.0,0.00013273,2]
[398354689,1765551065871,-500.0,0.00013273,2]
[398354690,1765551065880,-500.0,0.00013273,2]
[398354691,1765551065890,-500.0,0.00013273,2]
[398354692,1765551065900,-500.0,0.00013273,2]
[398354693,1765551065909,-500.0,0.00013273,2]
[398354694,1765551065923,-500.0,0.00013273,2]
[398354695,1765551065932,-500.0,0.00013273,2]
[398354696,1765551065941,-500.0,0.00013273,2]
[398354697,1765551065951,-500.0,0.00013273,2]
[398354698,1765551065963,-500.0,0.00013273,2]
[398354699,1765551065972,-152.49478968,0.00013273,2]
[398354700,1765551065982,-150.0,0.00013273,2]
[398354701,1765551065992,-500.0,0.00013273,2]
[398354702,1765551066001,-150.0,0.00013273,2]
[398354703,1765551066011,-151.44525487,0.00013273,2]
[398354704,1765551066021,-201.93567354,0.00013273,2]
[398354705,1765551066032,-279.79986078,0.00013284,2]
[398354706,1765551066042,-154.77,0.000133,2]
[398354707,1765551066052,-700.0,0.00013357,2]
[398354708,1765551066063,-154.77,0.000134,2]
[398354709,1765551066073,-153.5193978,0.0001341,2]
[398354710,1765551066083,-500.0,0.0001341,2]
[398354711,1765551066094,-153.35572587,0.0001341,2]
[398354712,1765551066105,-151.0,0.000135,2]
[398354713,1765551066115,-3076.02404635,0.0001354,2]
[398354714,1765551066124,-500.0,0.00013547,2]
[398354715,1765551066133,-700.0,0.00013575,2]
[398354716,1765551066143,-700.0,0.00013582,2]
[398354717,1765551066153,-154.77,0.000136,2]
[398354718,1765551066168,-300.0,0.00013673,2]
[398354719,1765551066178,-500.0,0.00013684,2]
[398354720,1765551066189,-500.0,0.00013698,2]
[398354721,1765551066199,-500.0,0.00013698,2]
[398354722,1765551066209,-500.0,0.00013698,2]
[398354723,1765551066219,-500.0,0.00013698,2]
[398354724,1765551066229,-500.0,0.00013698,2]
[398354725,1765551066239,-500.0,0.00013698,2]
[398354726,1765551066248,-500.0,0.00013698,2]
[398354727,1765551066258,-500.0,0.00013698,2]
[398354728,1765551066269,-500.0,0.00013698,2]
[398354729,1765551066278,-500.0,0.00013698,2]
[398354730,1765551066288,-500.0,0.00013698,2]
[398354731,1765551066297,-500.0,0.00013698,2]
[398354732,1765551066307,-500.0,0.00013698,2]
[398354733,1765551066317,-500.0,0.00013698,2]
[398354734,1765551066326,-500.0,0.00013698,2]
[398354735,1765551066336,-500.0,0.00013698,2]
[398354736,1765551066346,-500.0,0.00013698,2]
[398354737,1765551066355,-502.85819518,0.00013698,2]
[398354738,1765551066364,-833.25,0.00013698,2]
[398354739,1765551066373,-833.25,0.00013698,2]
[398354740,1765551066383,-833.25,0.00013698,2]
[398354741,1765551066392,-833.25,0.00013698,2]
[398354742,1765551066402,-833.25,0.00013698,2]
[398354743,1765551066411,-833.25,0.00013698,2]
[398354744,1765551066424,-833.25,0.00013698,2]
[398354745,1765551066433,-833.25,0.00013698,2]
[398354746,1765551066442,-500.0,0.00013698,2]
[398354747,1765551066452,-500.0,0.00013698,2]
[398354748,1765551066461,-500.0,0.00013698,2]
[398354749,1765551066471,-500.0,0.00013698,2]
[398354750,1765551066480,-500.0,0.00013698,2]
[398354751,1765551066490,-500.0,0.00013698,2]
[398354752,1765551066499,-500.0,0.00013698,2]
[398354753,1765551066509,-500.0,0.00013698,2]
[398354754,1765551066518,-500.0,0.00013698,2]
[398354755,1765551066528,-543.27696683,0.00013698,2]
[398354756,1765551066537,-1000.0,0.00013699,2]
[398354757,1765551066547,-1500.0,0.00013699,2]
[398354758,1765551066556,-500.0,0.00013699,2]
[398354759,1765551066566,-500.0,0.00013699,2]
[398354760,1765551066576,-500.0,0.00013699,2]
[398354761,1765551066587,-495.11861338,0.00013699,2]
[398354762,1765551066596,-500.0,0.00013699,2]
[398354763,1765551066606,-500.0,0.00013699,2]
[398354764,1765551066615,-500.0,0.00013699,2]
[398354765,1765551066625,-500.0,0.00013699,2]
[398354766,1765551066635,-500.0,0.00013699,2]
[398354767,1765551066644,-500.0,0.00013699,2]
[398354768,1765551066654,-500.0,0.00013699,2]
[398354769,1765551066664,-500.0,0.00013699,2]
[398354770,1765551066674,-508.04206109,0.00013699,2]
[398354771,1765551066683,-500.0,0.00013699,2]
[398354772,1765551066693,-500.0,0.00013699,2]
[398354773,1765551066702,-500.0,0.00013699,2]
[398354774,1765551066711,-500.0,0.00013699,2]
[398354775,1765551066720,-500.0,0.00013699,2]
[398354776,1765551066728,-500.0,0.00013699,2]
[398354777,1765551066738,-500.0,0.00013699,2]
[398354778,1765551066750,-500.0,0.00013699,2]
[398354779,1765551066759,-500.0,0.00013699,2]
[398354780,1765551066769,-500.0,0.00013699,2]
[398354781,1765551066779,-500.0,0.00013699,2]
[398354782,1765551066788,-500.0,0.00013699,2]
[398354783,1765551066797,-500.0,0.00013699,2]
[398354784,1765551066807,-500.0,0.00013699,2]
[398354785,1765551066815,-500.0,0.00013699,2]
[398354786,1765551066824,-500.0,0.00013699,2]
[398354787,1765551066833,-500.0,0.00013699,2]
[398354788,1765551066842,-500.0,0.00013699,2]
[398354789,1765551066851,-198.00196637,0.00013699,2]
[398354790,1765551066860,-500.0,0.00013699,2]
[398354791,1765551066869,-500.0,0.00013699,2]
[398354792,1765551066878,-500.0,0.00013699,2]
[398354793,1765551066887,-500.0,0.00013699,2]
[398354794,1765551066896,-500.0,0.00013699,2]
[398354795,1765551066905,-500.0,0.00013699,2]
[398354796,1765551066915,-500.0,0.00013699,2]
[398354797,1765551066924,-500.0,0.00013699,2]
[398354798,1765551066932,-500.0,0.00013699,2]
[398354799,1765551066941,-500.0,0.00013699,2]
[398354800,1765551066951,-500.0,0.00013699,2]
[398354801,1765551066959,-500.0,0.00013699,2]
[398354802,1765551066968,-500.0,0.00013699,2]
[398354803,1765551066978,-500.0,0.00013699,2]
[398354804,1765551066987,-500.0,0.00013699,2]
[398354805,1765551066995,-500.0,0.00013699,2]
[398354806,1765551067006,-500.0,0.00013699,2]
[398354807,1765551067015,-500.0,0.00013699,2]
[398354808,1765551067024,-500.0,0.00013699,2]
[398354809,1765551067034,-469.55907764,0.00013699,2]
[398354810,1765551067044,-500.0,0.00013699,2]
[398354811,1765551067053,-500.0,0.00013699,2]
[398354812,1765551067063,-500.0,0.00013699,2]
[398354813,1765551067072,-500.0,0.00013699,2]
[398354814,1765551067082,-500.0,0.00013699,2]
[398354815,1765551067092,-500.0,0.00013699,2]
[398354816,1765551067101,-160.0,0.00013699,2]
[398354817,1765551067110,-154.77,0.000137,2]
[398354818,1765551067120,-833.25,0.0001382,2]
[398354819,1765551067130,-961.59723464,0.00013821,2]
[398354820,1765551067140,-1000.0,0.00013821,2]
[398354821,1765551067149,-1000.0,0.00013821,2]
[398354822,1765551067159,-1000.0,0.00013821,2]
[398354823,1765551067170,-1000.0,0.00013821,2]
[398354824,1765551067181,-1000.0,0.00013821,2]
[398354825,1765551067191,-1000.0,0.00013821,2]
[398354826,1765551067201,-1000.0,0.00013821,2]
[398354827,1765551067211,-1000.0,0.00013821,2]
[398354828,1765551067220,-1000.0,0.00013821,2]
[398354829,1765551067230,-981.7502719,0.00013821,2]
[398354830,1765551067240,-1000.0,0.00013821,2]
[398354831,1765551067250,-1000.0,0.00013821,2]
[398354832,1765551067260,-1000.0,0.00013821,2]
[398354833,1765551067270,-1000.0,0.00013821,2]
[398354834,1765551067280,-1000.0,0.00013821,2]
[398354835,1765551067291,-1000.0,0.00013821,2]
[398354836,1765551067300,-1000.0,0.00013821,2]
[398354837,1765551067310,-1000.0,0.00013821,2]
[398354838,1765551067320,-1000.0,0.00013821,2]
[398354839,1765551067330,-1000.0,0.00013821,2]
[398354840,1765551067340,-1000.0,0.00013821,2]
[398354841,1765551067350,-1000.0,0.00013821,2]
[398354842,1765551067360,-1000.0,0.00013821,2]
[398354843,1765551067375,-1000.0,0.00013821,2]
[398354844,1765551067387,-1000.0,0.00013821,2]
[398354845,1765551067397,-501.2157047,0.00013821,2]
[398354846,1765551067407,-204.0,0.00013875,2]
[398354847,1765551067418,-154.77,0.000139,2]
[398354848,1765551067428,-209.46992097,0.00013913,2]
[398354849,1765551067439,-163.17055612,0.00013973,2]
[398354850,1765551067449,-154.77,0.00014,2]
[398354851,1765551067459,-700.0,0.00014068,2]
[398354852,1765551067468,-151.0,0.000141,2]
[398354853,1765551067477,-833.25,0.00014147,2]
[398354854,1765551067487,-864.0,0.0001416,2]
[398354855,1765551067496,-600.0,0.00014221,2]
[398354856,1765551067506,-783.85327747,0.00014247,2]
[398354857,1765551067515,-1000.0,0.00014247,2]
[398354858,1765551067525,-1000.0,0.00014247,2]
[398354859,1765551067535,-1000.0,0.00014247,2]
[398354860,1765551067544,-1000.0,0.00014247,2]
[398354861,1765551067554,-1000.0,0.00014247,2]
[398354862,1765551067564,-1000.0,0.00014247,2]
[398354863,1765551067574,-1000.0,0.00014247,2]
[398354864,1765551067583,-784.64455431,0.00014247,2]
[398354865,1765551067593,-1000.0,0.00014247,2]
[398354866,1765551067603,-1000.0,0.00014247,2]
[398354867,1765551067613,-1000.0,0.00014247,2]
[398354868,1765551067623,-163.79408364,0.00014247,2]
[398354869,1765551067632,-1000.0,0.00014247,2]
[398354870,1765551067642,-260.0,0.00014247,2]
[398354871,1765551067652,-241.8204,0.00014345,2]
[398354872,1765551067662,-833.25,0.00014368,2]
[398354873,1765551067672,-1648.12972489,0.00014368,2]
[398354874,1765551067682,-1500.0,0.00014368,2]
[398354875,1765551067692,-1500.0,0.00014368,2]
[398354876,1765551067702,-1500.0,0.00014368,2]
[398354877,1765551067711,-1500.0,0.00014368,2]
[398354878,1765551067721,-1500.0,0.00014368,2]
[398354879,1765551067731,-498.29288736,0.00014368,2]
[398354880,1765551067743,-734.81131868,0.00014368,2]
[398354881,1765551067753,-1048.50020923,0.00014368,2]
[398354882,1765551067763,-1500.0,0.00014368,2]
[398354883,1765551067777,-1500.0,0.00014368,2]
[398354884,1765551067787,-1500.0,0.00014368,2]
[398354885,1765551067797,-1500.0,0.00014368,2]
[398354886,1765551067807,-1500.0,0.00014368,2]
[398354887,1765551067817,-1500.0,0.00014368,2]
[398354888,1765551067827,-700.0,0.00014377,2]
[398354889,1765551067836,-370.0,0.000144,2]
[398354890,1765551067846,-700.0,0.00014401,2]
[398354891,1765551067855,-700.0,0.00014417,2]
[398354892,1765551067865,-700.0,0.00014436,2]
[398354893,1765551067875,-700.0,0.0001444,2]
[398354894,1765551067885,-833.25,0.00014475,2]
[398354895,1765551067895,-700.0,0.00014584,2]
[398354896,1765551067904,-700.0,0.00014601,2]
[398354897,1765551067915,-900.0,0.00014768,2]
[398354898,1765551067925,-833.25,0.00014794,2]
[398354899,1765551067935,-1550.0059967,0.00014795,2]
[398354900,1765551067945,-1639.80698152,0.00014795,2]
[398354901,1765551067955,-1500.0,0.00014795,2]
[398354902,1765551067965,-1500.0,0.00014795,2]
[398354903,1765551067974,-654.76780128,0.00014795,2]
[398354904,1765551067984,-284.09403884,0.00014795,2]
[398354905,1765551067994,-1500.0,0.00014795,2]
[398354906,1765551068004,-1500.0,0.00014795,2]
[398354907,1765551068014,-1500.0,0.00014795,2]
[398354908,1765551068024,-1500.0,0.00014795,2]
[398354909,1765551068034,-1500.0,0.00014795,2]
[398354910,1765551068044,-360.0,0.00014795,2]
[398354911,1765551068054,-151.0,0.000148,2]
[398354912,1765551068064,-833.25,0.00014916,2]
[398354913,1765551068075,-2000.0,0.00014916,2]
[398354914,1765551068085,-2000.0,0.00014916,2]
[398354915,1765551068096,-2000.0,0.00014916,2]
[398354916,1765551068106,-2000.0,0.00014916,2]
[398354917,1765551068116,-2000.0,0.00014916,2]
[398354918,1765551068126,-2000.0,0.00014916,2]
[398354919,1765551068137,-2000.0,0.00014916,2]
[398354920,1765551068147,-2000.0,0.00014916,2]
[398354921,1765551068157,-2000.0,0.00014916,2]
[398354922,1765551068167,-2000.0,0.00014916,2]
[398354923,1765551068178,-2000.0,0.00014916,2]
[398354924,1765551068188,-1088.87191592,0.00014941,2]
[398354925,1765551068199,-833.25,0.00014999,2]
[398354926,1765551068209,-833.25,0.00014999,2]
[398354927,1765551068220,-833.25,0.00015027,2]